Cogmind - Beta 15 @@@ ROGUE MODE // 2025.05.12 @ 14:32:07 Player: szymekc Result: Destroyed by JG-AKG(R) with Subdweller Laser Performance ------------- Evolutions (0) 0 Regions Visited (3) 600 Robots Destroyed (33) 165 Value Destroyed (618) 618 Prototype IDs (0) 0 Alien Tech Used (0) 0 Bonus (0) 0 TOTAL SCORE: 1383 Bonus ------- None Cogmind --------- Core Integrity 0/250 Matter 276/300 Energy 85/100 System Corruption 0% Temperature Cool (6) Movement Rolling (120) Ox1 Location -10/Subcaves Parts ------- > --- POWER (1) -------- (None) > --- PROPULSION (2) --- Subdweller Monowheel > --- UTILITY (2) ------ Large Storage Unit > --- WEAPON (2) ------- Assault Rifle > --- INVENTORY (15) --- Huge Storage Unit Structural Scanner Sensor Array Signal Interpreter Improved Terrain Scanner Transport Network Coupler Tractor Beam Assault Rifle Mining Laser Peak State ------------ > --- POWER ------------ Ion Engine > --- PROPULSION ------- Subdweller Monowheel > --- UTILITY ---------- Large Storage Unit > --- WEAPON ----------- Assault Rifle Heavy Battle Rifle > --- INVENTORY -------- Sensor Array Signal Interpreter Improved Terrain Scanner Transport Network Coupler Tractor Beam Assault Rifle Assault Rifle Mining Laser [Rating: 10] Favorites ----------- Power Ion Engine Engine Ion Engine Propulsion Light Treads Treads Light Treads Wheel Subdweller Monowheel Utility Seismic Detector Device Seismic Detector Storage Large Storage Unit Weapon EM Pulse Gun Energy Gun EM Pulse Gun Ballistic Gun Assault Rifle Special Weapon Mining Laser Build | -11 -10 -10 -10 ------- Run | Yrd Mat Min Sub Slots Evolved . | . . . . Power . | . . . . Propulsion . | . . . . Utility . | . . . . Weapon . | . . . . Parts Attached 22 | 8 7 . 7 Power 3 | 1 1 . 1 Engine 3 | 1 1 . 1 Core . | . . . . Reactor . | . . . . Propulsion 3 | 2 . . 1 Treads 2 | 2 . . . Leg . | . . . . Wheel 1 | . . . 1 Hover . | . . . . Flight . | . . . . Utility 5 | 2 3 . . Device 3 | 2 1 . . Storage 2 | . 2 . . Processor . | . . . . Hackware . | . . . . Protection . | . . . . Artifact . | . . . . Weapon 11 | 3 3 . 5 Energy Gun 6 | 2 2 . 2 Energy Cannon . | . . . . Ballistic Gun 4 | 1 . . 3 Ballistic Cannon . | . . . . Launcher . | . . . . Special Weapon 1 | . 1 . . Impact Weapon . | . . . . Slashing Weapon . | . . . . Piercing Weapon . | . . . . Special Melee Weapon . | . . . . Unidentified Prototypes . | . . . . Parts Lost 14 | . 3 . 11 Power 3 | . 1 . 2 Propulsion 2 | . . . 2 Utility 2 | . 1 . 1 Weapon 7 | . 1 . 6 Highest Loss Streak 8 | . 3 . 8 To Critical Strikes . | . . . . Average Backups 9 | 2 9 15 8 Power 1 | . 1 1 . Propulsion . | . . . . Utility 4 | 1 3 7 5 Weapon 4 | 1 4 7 3 Tool/Special . | . . . . Unused Backups 11 | 1 3 1 6 Power 1 | . 1 . . Propulsion . | . . . . Utility 7 | . 2 . 5 Weapon 3 | 1 . 1 1 Tool/Special . | . . . . Average Slot Usage (%) 95 | . 99 100 65 Engine 13 | . 13 14 12 Treads 25 | . 28 28 7 Device 14 | . 16 14 4 Storage 11 | . 11 14 9 Energy Gun 19 | . 17 28 9 Ballistic Gun 7 | . 9 . 16 Peak Build Rating 10 | 9 9 9 10 Average Rating 7 | 5 8 8 7 On Entrance 6 | . 9 8 9 Naked Turns . | . . . . Heaviest Build 90 | 11 90 30 31 Greatest Support 40 | 40 40 40 40 Greatest Overweight (x) 3 | . 2 . 3 Average Overweight (x) . | . . . 1 Largest Inventory Capacity 25 | 5 25 15 15 Average Capacity 14 | 5 18 15 10 Most Carried 15 | 5 15 15 15 Average Carried 9 | 2 9 15 8 Final Capacity 15 | 5 15 15 15 Final Carried 15 | 4 15 15 9 Class Distribution -------------------- 100% | Mutant Dominant Class ---------------- Mutant | -10/Materials Mutant | -10/Mines Mutant | -10/Subcaves Resources | -11 -10 -10 -10 ----------- Run | Yrd Mat Min Sub Matter Collected 576 | 327 143 16 90 Remotely . | . . . . Salvage Created 1159 | 322 509 178 150 Parts 69 | 23 26 7 13 Haulers Intercepted 2 | . 2 . . Recyclers Shooed 1 | 1 . . . Parts Field Recycled . | . . . . Retrieved Matter . | . . . . Parts Self-Destructed 6 | . . . 6 Prevented . | . . . . Kills | -11 -10 -10 -10 ------- Run | Yrd Mat Min Sub Combat Hostiles Destroyed 16 | . 6 4 6 Guns 14 | . 6 2 6 AOE 2 | . . 2 . Classes Destroyed 9 | 3 4 . 2 Worker 3 | 2 1 . . Builder 1 | . 1 . . Tunneler 8 | 8 . . . Hauler 2 | . 2 . . Recycler 2 | 1 1 . . Watcher 1 | . 1 . . Swarmer 4 | . . . 4 Grunt 10 | . 6 4 . Subdweller 2 | . . . 2 Best Kill Streak 5 | 2 3 2 5 Combat Bots Only 5 | . 1 2 5 Max Kills in Single Turn 2 | 1 2 2 1 Gunslinging . | . . . . Exploded 2 | . . 2 . Melee . | . . . . Uniques/NPCs Destroyed . | . . . . Combat | -11 -10 -10 -10 -------- Run | Yrd Mat Min Sub Hostile Shots Fired 137 | . 40 13 84 Missed 40 | . 10 6 24 Hits 97 | . 30 7 60 Projectile 97 | . 30 7 60 Critical Strikes 1 | . . . 1 Damage Taken 1354 | . 395 75 884 Core 269 | . 82 12 175 Absorbed by Shields . | . . . . Core Remaining (%) 100 | 100 . . . Volleys Fired 92 | 19 38 11 24 Largest 2 | 2 2 2 2 Hottest 100 | 60 100 80 80 Shots Fired 177 | 38 75 22 42 Gun 176 | 38 74 22 42 Cannon . | . . . . Launcher . | . . . . Special 1 | . 1 . . Kinetic 67 | 19 25 . 23 Thermal 1 | . 1 . . Explosive . | . . . . Electromagnetic 109 | 19 49 22 19 Robot Hit Streak 13 | 9 11 13 10 Robot Miss Streak 4 | 2 3 1 4 Penetration Max . | . . . . Secondary Targets 1 | . . . 1 Max Gunslinging Chain 1 | . . . 1 Shots Hit Robots 116 | 24 46 17 29 Core Hits 48 | 11 21 7 9 Critical Kills . | . . . . Critical Parts Destroyed . | . . . . Critical Strikes 2 | . 1 . 1 Corrupt 2 | . 1 . 1 Melee Attacks . | . . . . Impact . | . . . . Slashing . | . . . . Piercing . | . . . . Sneak Attacks . | . . . . Combat Hostiles . | . . . . Follow-up Attacks . | . . . . Damage Inflicted 1888 | 342 814 315 417 Guns 1597 | 305 657 218 417 Cannons . | . . . . Explosions 273 | 37 153 83 . Melee . | . . . . Ramming 18 | . 4 14 . Kinetic 672 | 161 227 . 284 Thermal 273 | 37 153 83 . Explosive . | . . . . Electromagnetic 925 | 144 430 218 133 Impact . | . . . . Slashing . | . . . . Piercing . | . . . . Highest Corruption . | . . . . Average Corruption . | . . . . Corruption Purged . | . . . . Corruption Blocked . | . . . . Overload Shots . | . . . . Overflow Damage 14 | 14 . . . Projectiles . | . . . . Explosions 14 | 14 . . . Melee . | . . . . Knockbacks 1 | . 1 . . Impact 1 | . 1 . . Kinetic . | . . . . Secondary . | . . . . Self-Inflicted Damage . | . . . . Shots . | . . . . Rammed 3 | . 1 2 . Targets Rammed 3 | . 1 2 . Kicked . | . . . . Crushed . | . . . . Highest Temperature 204 | . 141 204 . Average Temperature 50 | . 33 93 . Received Heat Transfer 429 | . 204 42 183 Siege Activations . | . . . . Martial Activations . | . . . . Shielding Activations . | . . . . Robots Disrupted . | . . . . Combat Hostiles . | . . . . Robots Corrupted . | . . . . Combat Hostiles . | . . . . Parts Fried 2 | . 1 1 . Impact Corruptions . | . . . . Robots Melted . | . . . . Combat Hostiles . | . . . . Parts Melted . | . . . . Heat Transferred 400 | 50 250 100 . Parts Sabotaged . | . . . . Parts Stolen . | . . . . Parts Stripped . | . . . . Power Chain Reactions 5 | 1 3 1 . Alert | -11 -10 -10 -10 ------- Run | Yrd Mat Min Sub Maximum Alert Level . | . . . . Low Security (%) 100 | 100 100 100 . Level 1 . | . . . . Level 2 . | . . . . Level 3 . | . . . . Level 4 . | . . . . Level 5 . | . . . . High Security . | . . . . Max Security . | . . . . Peak Influence 75 | 10 75 66 . Initial 9 | . . 9 . Average 13 | 1 16 12 . Influence Increases 576 | 55 304 107 110 Destroy 0b10 Robot/C 280 | . 120 80 80 Destroy 0b10 Robot/NC 85 | 55 30 . . Destroy Leader 66 | . 46 20 . Successful Hack 9 | . 9 . . Select Force Hacks 60 | . 60 . . Disable Machine 15 | . 15 . . Destroy Structure 16 | . 9 7 . Lose Combat Pursuer 45 | . 15 . 30 Influence Decreases 576 | 55 280 105 136 Entered New Map 29 | . . 15 14 Time Decay 455 | 55 250 90 60 Lost Part 92 | . 30 . 62 Squads Dispatched 3 | . 3 . . Investigation 2 | . 2 . . Extermination . | . . . . Reinforcement 1 | . 1 . . Assault . | . . . . Garrison . | . . . . Intercept . | . . . . Searches Triggered . | . . . . Construction Impeded . | . . . . Haulers Reinforced . | . . . . Active Scanning Responses . | . . . . Cargo Convoy Interrupts . | . . . . Stealth | -11 -10 -10 -10 --------- Run | Yrd Mat Min Sub Distress Signals . | . . . . Communications Jammed . | . . . . Distress Signals . | . . . . Times Spotted 22 | . 10 3 9 Peak Tracking Total 7 | . 3 2 7 Tactical Retreats 2 | . 1 . 1 Traps | -11 -10 -10 -10 ------- Run | Yrd Mat Min Sub Traps Triggered 1 | . 1 . . Indirectly . | . . . . Trap Hack Attempts . | . . . . Triggered . | . . . . Disarmed . | . . . . Reprogrammed . | . . . . Reused . | . . . . Traps Extracted . | . . . . Installed . | . . . . Triggered . | . . . . Machines | -11 -10 -10 -10 ---------- Run | Yrd Mat Min Sub Machines Disabled 1 | . 1 . . Max in Single Turn 1 | . 1 . . Machines Repaired . | . . . . Machines Dismantled . | . . . . Machines Sabotaged . | . . . . Overloaded Fab Kills . | . . . . Hacking | -11 -10 -10 -10 --------- Run | Yrd Mat Min Sub Machines Accessed 5 | . 5 . . Terminals 3 | . 3 . . Fabricators . | . . . . Repair Stations . | . . . . Recycling Units 2 | . 2 . . Scanalyzers . | . . . . Garrison Access . | . . . . Total Hacks 15 | . 15 . . Successful 11 | . 11 . . Failed 4 | . 4 . . Catastrophic . | . . . . Database Lockouts . | . . . . Manual 9 | . 9 . . Terminals 11 | . 11 . . Fabricators . | . . . . Repair Stations . | . . . . Recycling Units 4 | . 4 . . Scanalyzers . | . . . . Garrison Access . | . . . . Terminal Hacks 3 | . 3 . . Terminal Index 1 | . 1 . . Locate Traps 2 | . 2 . . Fabricator Hacks . | . . . . Repair Station Hacks . | . . . . Recycling Unit Hacks 2 | . 2 . . Retrieve Components 2 | . 2 . . Scanalyzer . | . . . . Garrison Access Hacks . | . . . . Unauthorized Hacks 6 | . 6 . . Terminals 4 | . 4 . . Botnet 2 | . 2 . . Skim 2 | . 2 . . Fabricators . | . . . . Repair Stations . | . . . . Recycling Units 2 | . 2 . . Tunnel 2 | . 2 . . Scanalyzers . | . . . . Garrison Access . | . . . . Data Cores Recovered . | . . . . Used . | . . . . Hacking Detections 3 | . 3 . . Full Trace Events . | . . . . Feedback Events . | . . . . Feedback Blocked . | . . . . Robot Schematics Acquired . | . . . . Robots Built . | . . . . Authchips . | . . . . Time . | . . . . Total Robot Build Rating . | . . . . Part Schematics Acquired . | . . . . Parts Built . | . . . . Authchips . | . . . . Time . | . . . . Total Part Build Rating . | . . . . Parts Repaired . | . . . . Time . | . . . . Parts Recycled . | . . . . Recycled Matter . | . . . . Retrieved Matter . | . . . . Retrieved Components 16 | . 16 . . Parts Scanalyzed . | . . . . Part Schematics Acquired . | . . . . Parts Damaged . | . . . . Bothacking | -11 -10 -10 -10 ------------ Run | Yrd Mat Min Sub Used RIF Installer . | . . . . Robots Hacked . | . . . . Non-combat . | . . . . Combat . | . . . . Robot Hacks Applied . | . . . . Relay Couplers Released . | . . . . Fabnet Peak Effective % . | . . . . Robots Rewired . | . . . . Allies Hacked . | . . . . Hacks Repelled . | . . . . Allies | -11 -10 -10 -10 -------- Run | Yrd Mat Min Sub Total Allies . | . . . . Largest Group . | . . . . Highest-Rated Group . | . . . . Highest-Rated Ally . | . . . . Total Orders . | . . . . Ally Attacks . | . . . . Total Damage . | . . . . Kills . | . . . . Allies Corrupted . | . . . . Allies Melted . | . . . . Intel | -11 -10 -10 -10 ------- Run | Yrd Mat Min Sub Active Infowar (turns) 1629 | 206 922 453 48 Terrain 201 | 13 188 . . Seismic 1629 | 206 922 453 48 Robot Analysis Total . | . . . . Derelict Logs Recovered . | . . . . Drone Launches . | . . . . Drone Recoveries . | . . . . Exploration | -11 -10 -10 -10 ------------- Run | Yrd Mat Min Sub Turns Passed 1858 | 287 951 453 167 Spaces Moved 798 | 120 363 258 57 Core 15 | 2 . . 13 Treads 753 | 118 363 258 14 Legs . | . . . . Wheels 30 | . . . 30 Hover . | . . . . Flight . | . . . . Fastest Speed 50 | 50 160 160 110 Average Speed 185 | 158 219 160 147 Slowest Speed 320 | 160 320 160 240 Overloaded Moves . | . . . . Propulsion Burnouts . | . . . . Robots Hopped . | . . . . Potential Cave-ins . | . . . . Cave-ins Triggered . | . . . . Exploration Rate (%) 36 | 5 67 70 4 Regions Visited 3 Branch Regions 2 Pre-discovered Areas 2 | . 2 . . Known Exits Taken . | . . . . Unknown Exits Taken 3 | 1 1 1 . Scrap Searched . | . . . . Spaces Dug . | . . . . Terrain Destroyed 20 | 4 7 8 1 Melee . | . . . . Projectile 1 | . . . 1 AOE 19 | 4 7 8 . Terrain Rammed . | . . . . Walls Destroyed . | . . . . Machines Disabled . | . . . . Actions | -11 -10 -10 -10 --------- Run | Yrd Mat Min Sub Total 989 | 176 439 277 97 Wait 35 | 24 6 5 . Move 795 | 119 362 257 57 Hop . | . . . . Pick Up 29 | 4 17 1 7 Fast Attach 12 | 8 2 . 2 Attach 8 | . 2 . 6 Detach 2 | 1 1 . . Swap 5 | . 5 . . Drop 8 | 1 5 1 1 Fire 92 | 19 38 11 24 Melee . | . . . . Ram . | . . . . Kick . | . . . . Crush 3 | . 1 2 . Escape Stasis . | . . . . Rewire . | . . . . Trap . | . . . . Miscellaneous . | . . . . Route ------- -11/Scrapyard -10/Materials (discovered 3 exits: [*Mat] / [*Min x2]) -10/Mines (discovered 2 exits: [*Mat] / [*Sub]) -10/Subcaves History --------- Turn | Location | Event 26 | -11/Scrapyard | Discovered new exit (range 16) 288 | -11/Scrapyard | Entered Materials 315 | -10/Materials | Build established: Mutant 504 | -10/Materials | Discovered new exit (range 14) 921 | -10/Materials | Lost 3 parts (1p1u1w) 953 | -10/Materials | Discovered new exit (range 15) 1221 | -10/Materials | Discovered new exit (range 11) 1239 | -10/Materials | Entered Mines 1336 | -10/Mines | Found a hidden stash of uninstalled traps 1386 | -10/Mines | A weapon hastily lodged in a ceiling crevice suddenly fell to the ground 1430 | -10/Mines | Discovered new exit (range 11) 1518 | -10/Mines | Discovered new exit (range 9) 1692 | -10/Mines | Entered Subcaves 1693 | -10/Subcaves | Approached by a straggling Scientist 1726 | -10/Subcaves | Core integrity fell below 50% 1772 | -10/Subcaves | Core integrity fell below 20% 1785 | -10/Subcaves | Lost 8 parts (1p2n1u4w) 1842 | -10/Subcaves | A Subdweller sparked back to life 1842 | -10/Subcaves | A Subdweller sparked back to life 1842 | -10/Subcaves | A Subdweller sparked back to life 1859 | -10/Subcaves | Destroyed by JG-AKG(R) with Subdweller Laser Last Messages --------------- 01811_ Acquired Assault Rifle. 01813_ Acquired Sensor Array. 01815_ Acquired Signal Interpreter. 01817_ Acquired Assault Rifle. 01819_ Acquired Transport Network Coupler. 01820_ Subatomizers dissect the Sub. Power Source. 01822_ Acquired Structural Scanner. 01824_ Acquired Huge Storage Unit. 01828_ Acquired 9 matter. 01830_ Subatomizers dissect the Sub. Power Source. 01830_ Acquired 1 matter. 01842_ VA-975(R) creaks and sparks as it begins to move. 01842_ FF-QBE(R) creaks and sparks as it begins to move. 01842_ JG-AKG(R) creaks and sparks as it begins to move. 01842_ Ion Engine destroyed. AX-XWJ(c): "I think it's somewhere north of here" 01845_ Assault Rifle destroyed. 01848_ VA-975(R) affixes Scrap Shield Fragment to Scrap Shield. 01852_ VA-975(R) destroyed. 01857_ Hvy. Battle Rifle destroyed. Map ----- +----------------------------------------------------+ | ?????????????????????????????????????????????????? | | ?????????????????????????????????????????????????? | | ?????????????????????????????????????????????????? | | ?????????????????????????????????????????????????? | | ?????????????????????????????????????????????????? | | ?????????????????????????????????????????????????? | | ?????????????????????????????????????????????????? | | ?????????????????????????????????????????????????? | | ?????????????????????????????????????????????????? | | ?????????????????????????????????????????????????? | | ?????????????????????????????????????????????????? | | ?????????????????????????????????????????????????? | | ?????????????????????????????????????????????????? | | ????????????????????????????????????????# ???????? | | ????????????????????????? "????????????# ??????? | | ????????????????????????? #??????????? #??????? | | ???????????????????????## " ??????????? #????##? | | ??????????????????????##c"" ??????????# #??? "? | | ?????????????????????## "" ##????????? ##? ?? | | ????????????????????## ##???????? $ ## ?? | | ???????????????????? ???????## ??? | | ????????????????????? ######### ???? | | ??????????????????????# #= # # ?????? | | ??????????????????????#% % #??????? | | ?????????????????????## * #???????? | | ????????????????###### @ #####????? | | ???????????????## % ### ###??? | | ???????????????# #??? | | ???????????????## #R R # #??? | | ????????????????##### &!&% ###### ###? | | ????????????????????#%## %&%! ;##?### #? | | ????????????????????##?# !*&& #??# #? | | ???????????????????????# << # ##??## ###? | | ???????????????????????#############????#######??? | | ?????????????????????????????????????????????????? | | ?????????????????????????????????????????????????? | | ?????????????????????????????????????????????????? | | ?????????????????????????????????????????????????? | | ?????????????????????????????????????????????????? | | ?????????????????????????????????????????????????? | | ?????????????????????????????????????????????????? | | ?????????????????????????????????????????????????? | | ?????????????????????????????????????????????????? | | ?????????????????????????????????????????????????? | | ?????????????????????????????????????????????????? | | ?????????????????????????????????????????????????? | | ?????????????????????????????????????????????????? | | ?????????????????????????????????????????????????? | | | | | +----------------------------------------------------+ Best States ------------- Heat Dissipation 25 Energy Generation 10 Energy Capacity 250 Matter Stores 300 Matter Capacity 300 Sight Range 16 Terrain Scan Range 16 Terrain Scan Density 10 Evasion (%) 40 Recoil Reduction 2 Item Schematics ----------------- None Robot Schematics ------------------ None Fabricated ------------ Nothing Repaired ---------- Nothing Alien Tech Used ----------------- None Achievements -------------- None Challenges ------------ None Game ------ Seed ClaymoresBeamRouter Manual? 0 Play Time 00:10:41 Cumulative 703.4 hours Start 2025.05.12 @ 14:23:21 End 2025.05.12 @ 14:32:07 Sessions 1 Manual Loads 0 Difficulty Rogue Special Mode None Game No. 236 Rogue 234 Adventurer 2 Explorer 0 Win Type - Total 38 Types 13/4/11/1/1/0/7/1/0/0 Lore% 94 Gallery% 91 Achievement% 82 Wizard Run 0 Options --------- Layout 0 ASCII 0 Keyboard 1 Movement Numpad Keybinds 0 Fullscreen 1 Font 24/Smallcaps Map View 76x50 Zoom Use 0% Tactical HUD 1 Map Filters NONE Filters NONE Steam 1 RUN: 600d09b9-2b0a-45b9-8279-825f7e21630b